bitfinex/quotes_SOLUSD_20241009
["timestamp","ask_amount","ask_price","bid_price","bid_amount"]
[1728482758129,7.0735,141.38,141.33,7.0751]
[1728482758328,2.18985599,141.39,141.33,7.0751]
[1728482758329,8.84232478,141.37,141.33,7.0751]
[1728482758537,8.84232478,141.37,141.32,19.1045103]
[1728482758538,7.0741,141.36,141.32,24.7655]
[1728482758833,7.0747,141.35,141.32,17.6896]
[1728482759210,1.7686381,141.34,141.29,17.6931]
[1728482759417,7.0769,141.31,141.27,7.0785]
[1728482759732,7.0762,141.32,141.28,8.49333681]
[1728482760434,21.76917101,141.35,141.26,70.0]
[1728482760742,7.0744,141.36,141.32,7.076]
[1728482760938,1.76859207,141.36,141.3,17.6927]
[1728482761228,7.0751,141.34,141.31,7.0765]
[1728482761820,17.6843,141.37,141.28,70.0]
[1728482762023,6.3282,141.34,141.24,76.2496]
[1728482762228,7.078,141.29,141.25,12.35592129]
[1728482762531,19.45946028,141.33,141.24,70.0]
[1728482762532,20.0,141.32,141.24,70.0]
[1728482762715,7.0781,141.28,141.24,77.08]
[1728482762917,7.0778,141.29,141.25,7.0795]
[1728482763406,1.76940852,141.31,141.23,24.781]
[1728482763407,7.0787,141.27,141.23,24.781]
[1728482765015,20.0,141.3,141.23,24.781]
[1728482765217,7.0783,141.28,141.23,24.781]
[1728482765420,7.0783,141.28,141.24,7.08]
[1728482766127,20.0,141.3,141.25,1.41570514]
[1728482766320,20.12549,141.33,141.25,1.41570514]
[1728482766519,7.0774,141.3,141.26,7.0791]
[1728482766720,7.0774,141.3,141.27,1.41557634]
[1728482767836,1.7694704,141.33,141.27,19.11197634]
[1728482768041,1.76915462,141.36,141.27,71.41557634]
[1728482768415,7.0752,141.34,141.3,24.7692]
[1728482768615,1.76915462,141.36,141.28,7.078]
[1728482768834,1.76915462,141.36,141.25,7.0792]
[1728482768835,7.0777,141.29,141.25,7.0792]
[1728482769439,7.0773,141.3,141.26,7.079]
[1728482769646,21.76938781,141.32,141.26,17.6976]
[1728482769820,17.6918,141.31,141.23,104.1049]
[1728482770013,7.0782,141.28,141.24,7.0798]
[1728482770741,7.0787,141.27,141.23,94.7817]
[1728482771217,7.0792,141.26,141.23,17.7015]
[1728482771419,20.0,141.28,141.24,8.49553951]
[1728482771813,20.0,141.28,141.24,7.0797]
[1728482771814,27.0781,141.28,141.24,7.0797]
[1728482772424,27.0781,141.28,141.23,17.7015]
[1728482772425,27.0781,141.28,141.23,24.7819]
[1728482773126,20.0,141.28,141.24,1.41570921]
[1728482773322,7.0774,141.3,141.26,7.0791]
[1728482773524,7.0762,141.32,141.28,7.078]
[1728482773747,1.76925303,141.34,141.29,1.41540242]
[1728482773945,24.25853942,141.35,141.29,1.41540242]
[1728482774248,7.0757,141.33,141.29,24.7714]
[1728482774428,7.0751,141.34,141.3,8.49208169]
[1728482774856,13.7297,141.35,141.31,8.49142565]
[1728482775047,7.0747,141.35,141.31,8.49142565]
[1728482775547,0.421138,141.39,141.3,24.027864]
[1728482775843,0.421138,141.39,141.37,7.0732]
[1728482776051,0.421138,141.39,141.38,1.41440232]
[1728482776245,0.421138,141.39,141.36,17.6846]
[1728482776577,0.421138,141.39,141.36,24.7586]
[1728482776756,0.421138,141.39,141.37,8.48783888]
[1728482777256,0.421138,141.39,141.36,17.6846]
[1728482777421,0.421138,141.39,141.37,1.41447839]
[1728482778227,0.421138,141.39,141.37,8.48807839]
[1728482778434,0.421138,141.39,141.36,17.6846]
[1728482778621,7.0733,141.38,141.33,24.7642]
[1728482778826,0.421138,141.39,141.35,7.0745]
[1728482779254,0.421138,141.39,141.33,87.6887]
[1728482779425,7.494138,141.39,141.34,7.075]
[1728482779626,0.421138,141.39,141.35,1.41455921]
[1728482779820,0.421138,141.39,141.35,8.48895921]
[1728482780026,0.421138,141.39,141.35,7.0744]
[1728482781350,7.0732,141.38,141.34,7.075]
[1728482781665,7.0742,141.36,141.31,77.0765]
[1728482782741,7.0742,141.36,141.32,1.4149015]
[1728482782959,7.0755,141.34,141.32,1.4149015]
[1728482783264,7.0755,141.34,141.26,7.0791]
[1728482783265,1.76883823,141.33,141.26,7.0791]
[1728482783431,7.0783,141.28,141.25,5.27326237]
[1728482783629,7.0789,141.27,141.22,77.081]
[1728482783835,20.0,141.3,141.22,77.081]
[1728482784033,7.0798,141.25,141.22,70.0]
[1728482784273,1.76975567,141.29,141.22,70.0]
[1728482784572,7.0791,141.26,141.22,77.081]
[1728482785058,1.76975567,141.29,141.22,70.0]
[1728482785266,7.0785,141.28,141.23,7.0802]
[1728482785466,1.76959632,141.28,141.22,70.0]
[1728482785675,7.0791,141.27,141.22,77.081]
[1728482785848,1.76976805,141.26,141.22,1.41581444]
[1728482786166,7.0807,141.23,141.19,7.0825]
[1728482786351,7.0807,141.23,141.18,94.7901]
[1728482786662,6.0771,141.27,141.18,87.7071]
[1728482786852,27.0791,141.26,141.21,7.0816]
[1728482787539,8.07786869,141.31,141.22,89.11789495]
[1728482787739,27.079,141.27,141.22,24.7826]
[1728482788253,20.0,141.28,141.23,8.49601675]
[1728482788662,7.0782,141.28,141.23,8.49601675]
[1728482789159,7.0777,141.29,141.24,7.08]
[1728482789462,7.0777,141.29,141.25,1.41565811]
[1728482789660,7.0777,141.29,141.25,8.49525811]
[1728482789866,13.385,141.31,141.27,7.0785]
[1728482790056,8.07734474,141.31,141.24,17.6998]
[1728482790244,7.0781,141.28,141.24,24.7798]
[1728482790641,7.0791,141.27,141.22,77.20659]
[1728482790838,25.76954474,141.31,141.23,1.41574817]
[1728482791042,13.3847,141.31,141.27,7.0786]
[1728482791369,13.3847,141.31,141.25,0.12549]
[1728482791370,13.3847,141.31,141.26,7.079]
[1728482791863,1.76925969,141.32,141.27,19.11110775]
[1728482792048,8.84525969,141.33,141.27,19.11110775]
[1728482792553,7.0762,141.32,141.28,7.078]
[1728482792758,7.0762,141.32,141.29,1.4152965]
[1728482793764,7.076,141.33,141.29,7.0775]
[1728482794369,8.34598308,141.35,141.29,17.6937]
[1728482794566,7.0755,141.34,141.29,24.7709]
[1728482794860,7.0757,141.33,141.29,24.7709]
[1728482795240,7.0753,141.34,141.29,24.7709]
[1728482795667,8.34598308,141.35,141.28,7.0781]
[1728482795876,21.76908534,141.34,141.26,94.7756]
[1728482796041,7.0777,141.29,141.25,7.0795]
[1728482796362,7.0784,141.28,141.24,7.08]
[1728482796668,1.76945967,141.31,141.25,8.49516774]
[1728482796961,7.0762,141.32,141.28,7.078]
[1728482797167,8.84533609,141.33,141.29,8.49290664]
[1728482797372,7.0759,141.33,141.29,8.49290664]
[1728482799102,7.0752,141.34,141.3,7.0771]
[1728482800484,1.7688887,141.33,141.29,17.6938]
[1728482800767,7.0761,141.32,141.28,7.078]
[1728482802447,7.0756,141.33,141.29,8.49277099]
[1728482802662,7.0756,141.33,141.29,7.0775]
[1728482803973,6.5769,141.35,141.3,1.41511873]
[1728482804174,7.0746,141.35,141.31,7.0764]
[1728482804365,7.0747,141.35,141.32,1.41500172]
[1728482805845,6.977838,141.39,141.33,93.902374]
[1728482806080,7.494038,141.39,141.35,7.0745]
[1728482806252,7.494038,141.39,141.36,1.41460381]
[1728482806617,0.421138,141.39,141.36,1.41460381]
[1728482806879,0.421138,141.39,141.38,7.0731]
[1728482807180,0.421138,141.39,141.38,8.48748778]
[1728482807561,0.421138,141.39,141.37,77.0733]
[1728482807755,0.421138,141.39,141.37,7.0733]
[1728482807949,0.421138,141.39,141.36,17.6849]
[1728482808170,7.493738,141.39,141.37,1.41452175]
[1728482808373,0.421138,141.39,141.37,1.41452175]
[1728482808578,0.421138,141.39,141.37,1.41444612]
[1728482809276,0.421138,141.39,141.38,30.975474]
[1728482809752,0.421138,141.39,141.38,31.100964]
[1728482810662,0.421138,141.39,141.38,32.5150288]
[1728482811880,7.0678,141.49,141.44,7.0697]
[1728482812085,7.0678,141.49,141.43,87.6755]
[1728482812086,7.0678,141.49,141.45,8.48297869]
[1728482812565,7.0678,141.49,141.45,7.0694]
[1728482813064,7.0678,141.49,141.43,17.6755]
[1728482813065,1.76687006,141.49,141.43,17.6755]
[1728482813267,1.76687006,141.49,141.4,17.6797]
[1728482813268,7.0697,141.45,141.4,17.6797]
[1728482813472,7.0697,141.45,141.39,70.0]
[1728482813473,7.0712,141.42,141.37,94.7566]
[1728482813680,21.76687006,141.49,141.39,87.6809]
[1728482813860,21.76687006,141.49,141.4,1.41405618]
[1728482814061,7.07,141.45,141.4,8.48605618]
[1728482814367,7.0702,141.44,141.4,8.48605618]
[1728482814571,7.0702,141.44,141.4,1.41405618]
[1728482815359,39.43677006,141.49,141.4,8.48615618]
[1728482815360,7.0697,141.45,141.4,8.48615618]
[1728482816975,7.0697,141.45,141.4,1.41405618]
[1728482817182,7.0692,141.46,141.41,77.0715]
[1728482817357,7.0692,141.46,141.42,8.48480785]
[1728482818292,7.90514139,141.5,141.43,17.6762]
[1728482818481,7.069,141.47,141.43,17.6762]
[1728482818782,7.069,141.47,141.44,1.41373257]
[1728482818987,1.76716571,141.49,141.42,7.071]
[1728482818988,7.0692,141.46,141.42,7.071]
[1728482819192,7.0686,141.47,141.43,8.48430422]
[1728482820385,7.0686,141.47,141.4,0.12549]
[1728482820386,7.0702,141.44,141.4,7.0721]
[1728482820569,7.0702,141.44,141.41,1.41401341]
[1728482820777,1.76752004,141.48,141.41,71.41401341]
[1728482820981,1.76752004,141.48,141.41,87.6783]
[1728482821185,1.76752004,141.48,141.4,7.0719]
[1728482821186,7.0702,141.44,141.4,7.0719]
[1728482821405,7.0722,141.4,141.36,7.0737]
[1728482821689,7.0722,141.4,141.35,17.6858]
[1728482821904,7.87756651,141.43,141.34,7.075]
[1728482821905,17.6783,141.42,141.34,7.075]
[1728482822066,17.6783,141.42,141.34,70.0]
[1728482822067,7.0728,141.39,141.34,70.0]
[1728482822266,7.0728,141.39,141.35,8.48906872]
[1728482822463,7.0732,141.38,141.34,94.7624]
[1728482822972,7.0727,141.39,141.35,8.48919905]
[1728482824290,7.0722,141.4,141.36,7.074]
[1728482824493,7.0722,141.4,141.37,1.41444622]
[1728482824990,7.0712,141.42,141.37,1.41444622]
[1728482825287,13.1807,141.43,141.39,7.0724]
[1728482825504,13.1807,141.43,141.4,1.41422175]
[1728482825793,15.907,141.45,141.4,1.41422175]
[1728482825991,20.0,141.44,141.38,70.0]
[1728482826200,15.907,141.45,141.39,23.902374]
[1728482826365,22.9768,141.45,141.4,7.0716]
[1728482826569,22.9768,141.45,141.41,17.6785]
[1728482826995,13.1788,141.47,141.43,7.0704]
[1728482827174,16.85017828,141.49,141.42,70.0]
[1728482827379,16.84967104,141.49,141.44,1.41381296]
[1728482827588,7.0687,141.47,141.43,7.0704]
[1728482827901,22.1504,141.49,141.45,7.0696]
[1728482828198,6.6158,141.5,141.46,8.4824379]
[1728482828402,7.0666,141.51,141.47,7.0686]
[1728482828703,7.0666,141.51,141.48,1.41335154]
[1728482828997,17.3616094,141.53,141.48,1.41335154]
[1728482829165,0.8313094,141.53,141.51,7.0665]
[1728482829375,0.8313094,141.53,141.52,1.4130481]
[1728482829600,0.8313094,141.53,141.5,77.067]
[1728482830100,0.8313094,141.53,141.49,24.7363]
[1728482830691,0.8313094,141.53,141.5,95.31542039]
[1728482830994,0.8313094,141.53,141.51,7.0665]
[1728482831189,0.8313094,141.53,141.5,100.969374]
[1728482831387,0.8313094,141.53,141.49,24.7363]
[1728482831592,0.8313094,141.53,141.49,17.6688]
[1728482831792,7.0661,141.52,141.47,30.970874]
[1728482832194,7.0661,141.52,141.47,7.0685]
[1728482832369,0.8313094,141.53,141.46,87.6721]
[1728482832370,7.0668,141.51,141.46,87.6721]
[1728482832695,7.0671,141.5,141.46,24.741]
[1728482832900,0.8313094,141.53,141.44,85.4319]
[1728482832901,20.26252401,141.53,141.44,70.0]
[1728482833202,7.0667,141.51,141.46,77.0687]
[1728482833380,7.0662,141.52,141.47,1.4133649]
[1728482833585,7.0662,141.52,141.46,70.0]
[1728482833905,7.0667,141.51,141.47,24.7397]
[1728482834190,7.0671,141.5,141.46,7.0689]
[1728482834372,7.0676,141.49,141.45,7.0694]
[1728482834802,7.0672,141.5,141.45,7.0694]
[1728482834991,1.76683423,141.51,141.45,7.0694]
[1728482835194,7.0676,141.49,141.45,7.0694]
[1728482835381,7.0683,141.48,141.44,24.7447]
[1728482835586,20.0,141.51,141.46,70.0]
[1728482835793,7.0677,141.49,141.44,17.6747]
[1728482835996,7.0682,141.48,141.44,24.7448]
[1728482836297,20.0,141.51,141.45,1.41359254]
[1728482836483,20.0,141.51,141.47,7.0685]
[1728482836678,20.0,141.51,141.46,17.6723]
[1728482836875,27.0671,141.51,141.46,24.7414]
[1728482837377,7.0671,141.51,141.47,1.41336848]
[1728482837572,6.5855,141.52,141.48,17.6695]
[1728482837773,6.5855,141.52,141.49,1.41331542]
[1728482838010,20.0,141.52,141.49,1.41331542]
[1728482838175,0.8313094,141.53,141.49,1.41331542]
[1728482838494,0.8313094,141.53,141.5,7.0667]
[1728482838703,0.8313094,141.53,141.51,1.41306239]
[1728482839979,0.8313094,141.53,141.51,8.47966239]
[1728482840200,0.8313094,141.53,141.51,1.41306239]
[1728482840498,0.8313094,141.53,141.52,8.47902648]
[1728482841195,0.8313094,141.53,141.52,1.41292648]
[1728482841396,0.8313094,141.53,141.52,78.47892224]
[1728482841605,0.8313094,141.53,141.52,102.50678624]
[1728482842398,0.8313094,141.53,141.52,101.093964]
[1728482843284,0.3313094,141.53,141.52,102.50657406]
[1728482843694,0.3313094,141.53,141.52,101.093964]
[1728482844403,0.3313094,141.53,141.52,102.50649619]
[1728482844795,0.3313094,141.53,141.52,101.093964]
[1728482846777,0.3313094,141.53,141.52,77.0661]
[1728482846984,0.3313094,141.53,141.52,78.47881636]
[1728482847213,0.3313094,141.53,141.52,77.0661]
[1728482847402,0.3313094,141.53,141.52,78.47872857]
[1728482848104,0.3313094,141.53,141.52,77.0661]
[1728482848308,0.3313094,141.53,141.5,87.6672]
[1728482848486,0.3313094,141.53,141.51,8.47941681]
[1728482848883,0.3313094,141.53,141.52,77.0661]
[1728482849098,0.3313094,141.53,141.52,78.47877575]
[1728482849604,0.3313094,141.53,141.52,102.50663975]
[1728482850011,0.3313094,141.53,141.52,101.093964]
[1728482851903,0.3313094,141.53,141.52,102.50640596]
[1728482852090,0.3313094,141.53,141.52,101.093964]
[1728482852292,0.3313094,141.53,141.52,102.50640893]
[1728482852597,0.3313094,141.53,141.52,101.093964]
[1728482852800,0.3313094,141.53,141.52,102.50652998]
[1728482854683,0.3313094,141.53,141.52,101.093964]
[1728482855605,0.3313094,141.53,141.52,100.842984]
[1728482857010,0.3313094,141.53,141.52,102.50662848]
[1728482857195,0.3313094,141.53,141.52,101.093964]
[1728482860414,0.3313094,141.53,141.47,15.8589]
[1728482860415,0.3313094,141.53,141.47,17.6706]
[1728482860610,0.3313094,141.53,141.5,7.0671]
[1728482860790,0.3313094,141.53,141.51,1.4130217]
[1728482860991,0.3313094,141.53,141.52,7.0661]
[1728482861185,0.3313094,141.53,141.51,17.6662]
[1728482861388,0.3313094,141.53,141.52,7.0661]
[1728482861800,0.3313094,141.53,141.52,101.093964]
[1728482862005,0.3313094,141.53,141.51,17.6662]
[1728482862203,0.3313094,141.53,141.51,24.7327]
[1728482862516,0.3313094,141.53,141.52,102.25582088]
[1728482862809,0.3313094,141.53,141.52,100.842984]
[1728482863014,0.3313094,141.53,141.51,24.7324]
[1728482863216,0.3313094,141.53,141.52,7.0661]
[1728482864601,0.3313094,141.53,141.51,24.027864]
[1728482865002,0.3313094,141.53,141.51,31.094364]
[1728482865196,0.3313094,141.53,141.52,77.0661]
[1728482865402,0.3313094,141.53,141.52,102.50683058]
[1728482867299,0.3313094,141.53,141.52,101.093964]
[1728482870600,0.3313094,141.53,141.5,87.6674]
[1728482871013,0.3313094,141.53,141.5,24.7342]
[1728482871209,0.3313094,141.53,141.49,7.0675]
[1728482871210,7.3969094,141.53,141.49,7.0675]
[1728482871416,7.3970094,141.53,141.5,1.41304382]
[1728482871622,0.3313094,141.53,141.5,8.48004382]
[1728482871926,0.3313094,141.53,141.5,7.067]
[1728482872245,0.3313094,141.53,141.48,70.0]
[1728482872402,6.4241,141.52,141.46,87.6717]
[1728482872597,7.0667,141.51,141.47,11.05463859]
[1728482873021,13.4904,141.52,141.48,8.48142055]
[1728482876411,13.4904,141.52,141.48,7.0681]
[1728482876611,13.4904,141.52,141.49,1.4132429]
[1728482877018,13.4904,141.52,141.48,7.0681]
[1728482877316,13.4902,141.52,141.49,1.41322003]
[1728482877512,13.4902,141.52,141.49,5.39955862]
[1728482877710,0.3313094,141.53,141.5,1.41322153]
[1728482877904,0.3313094,141.53,141.5,26.14762153]
[1728482878418,0.3313094,141.53,141.52,7.0661]
[1728482878621,0.3313094,141.53,141.52,8.47902222]
[1728482878926,0.3313094,141.53,141.52,30.968474]
[1728482880632,0.3313094,141.53,141.52,32.50677817]
[1728482880819,0.3313094,141.53,141.52,36.50236198]
[1728482881208,0.3313094,141.53,141.52,35.08954781]
[1728482881407,0.3313094,141.53,141.52,36.50221622]
[1728482881733,0.3313094,141.53,141.52,36.50214758]
[1728482881907,0.3313094,141.53,141.52,57.49308078]
[1728482882316,0.3313094,141.53,141.52,56.08048101]
[1728482882945,0.3313094,141.53,141.52,56.0835847]
[1728482883614,0.3313094,141.53,141.52,57.49587368]
[1728482884030,0.3313094,141.53,141.52,56.0835847]
[1728482884411,0.3313094,141.53,141.52,11.0647875]
[1728482885641,0.3313094,141.53,141.52,36.50533012]
[1728482885934,0.3313094,141.53,141.52,57.49626332]
[1728482886231,0.3313094,141.53,141.52,53.49757582]
[1728482887929,0.3313094,141.53,141.52,53.49757582]
[1728482889117,29.7986,141.62,141.61,7.0616]
[1728482889118,6.1151,141.62,141.61,7.0616]
[1728482889319,7.0597,141.65,141.61,7.0616]
[1728482889320,23.6104,141.65,141.61,8.4737012]
[1728482889855,16.5507,141.65,141.62,7.0611]
[1728482890051,16.5507,141.65,141.63,70.0]
[1728482890241,16.5507,141.65,141.62,7.0611]
[1728482890443,16.5507,141.65,141.63,30.837384]
[1728482890945,6.3055,141.66,141.63,30.837384]
[1728482891333,6.3055,141.66,141.62,17.6524]
[1728482891533,7.0599,141.65,141.61,77.0614]
[1728482891722,13.3647,141.66,141.61,77.0614]
[1728482891924,13.3647,141.66,141.62,30.837884]
[1728482892321,0.8313094,141.67,141.65,7.0592]
[1728482892529,0.8313094,141.67,141.66,1.41156741]
[1728482893547,0.8313094,141.67,141.64,30.836784]
[1728482893923,0.8313094,141.67,141.65,1.41157341]
[1728482894124,0.8313094,141.67,141.64,30.836784]
[1728482894430,0.8313094,141.67,141.65,8.47107388]
[1728482894632,0.8313094,141.67,141.65,78.47107388]
[1728482895459,0.8313094,141.67,141.66,32.49848677]
[1728482895634,0.8313094,141.67,141.66,31.086964]
[1728482895837,0.8313094,141.67,141.65,94.7078]
[1728482896049,7.8902094,141.67,141.63,77.0602]
[1728482896231,0.8313094,141.67,141.64,1.41169392]
[1728482896537,0.8313094,141.67,141.65,7.0595]
[1728482896743,0.8313094,141.67,141.64,24.7101]
[1728482896927,0.8313094,141.67,141.63,70.0]
[1728482897129,0.8313094,141.67,141.6,56.2992332]
[1728482897130,7.0596,141.65,141.61,24.715]
[1728482897338,7.0606,141.64,141.59,77.0625]
[1728482897738,7.0608,141.63,141.59,7.0625]
[1728482897935,7.0614,141.62,141.58,24.7198]
[1728482898140,7.0614,141.62,141.58,17.6568]
[1728482898357,7.0619,141.61,141.57,77.0632]
[1728482899317,7.0618,141.61,141.57,70.0]
[1728482899546,7.0628,141.59,141.55,94.7252]
[1728482899726,16.78406306,141.63,141.55,94.7252]
[1728482899727,7.0621,141.6,141.56,7.064]
[1728482900525,6.2017,141.58,141.53,70.0]
[1728482900627,7.0636,141.57,141.54,4.00691911]
[1728482900830,7.0645,141.56,141.52,17.6644]
[1728482901020,7.0642,141.56,141.53,4.00718682]
[1728482901221,7.0637,141.57,141.54,4.00718682]
[1728482901438,13.2649,141.58,141.55,1.41275661]
[1728482901644,6.2017,141.58,141.56,7.0639]
[1728482901944,19.41670657,141.64,141.55,24.7253]
[1728482901945,7.0628,141.59,141.55,24.7253]
[1728482902134,7.0628,141.59,141.55,17.6608]
[1728482902543,7.0628,141.59,141.56,1.41259723]
[1728482902743,7.0628,141.59,141.55,17.6608]
[1728482903053,28.82768763,141.61,141.56,7.0641]
[1728482903360,7.064,141.57,141.52,17.79019]
[1728482903644,21.76568763,141.61,141.53,4.00731181]
[1728482903645,1.76597191,141.6,141.53,4.00731181]
[1728482903848,7.0651,141.54,141.53,4.00731181]
[1728482904059,6.1498,141.54,141.53,4.00731181]
[1728482904238,6.1498,141.54,141.53,4.00789482]
[1728482905359,22.8045,141.56,141.53,4.00789482]
[1728482905360,15.74,141.56,141.53,4.00789482]
[1728482905562,15.5324,141.6,141.56,17.6602]
[1728482905874,13.4112,141.62,141.57,1.41241694]
[1728482905875,7.0618,141.61,141.57,1.41241694]
[1728482906438,13.4115,141.62,141.57,8.47591694]
[1728482906746,7.0622,141.6,141.56,24.7242]
[1728482907248,7.0617,141.61,141.57,1.41241969]
[1728482907447,7.0624,141.6,141.56,24.7243]
[1728482907647,21.76552629,141.61,141.56,17.6602]
[1728482907849,7.0622,141.6,141.55,77.0643]
[1728482908640,7.0628,141.59,141.55,7.0643]
[1728482908822,7.0628,141.59,141.55,77.0643]
[1728482909959,27.0616,141.61,141.57,7.0632]
[1728482910728,7.0629,141.59,141.55,17.661]
[1728482910951,1.76576894,141.58,141.54,4.00243828]
[1728482911257,1.76576894,141.58,141.51,4.00341528]
[1728482911258,7.0664,141.52,141.51,4.00341528]
[1728482912093,7.0676,141.49,141.48,4.00341528]
[1728482912248,7.0686,141.47,141.46,4.00985042]
[1728482912454,7.0679,141.49,141.46,4.00985042]
[1728482912765,1.76689387,141.51,141.46,5.42345023]
[1728482912766,7.0672,141.5,141.46,5.42345023]
[1728482912951,7.0672,141.5,141.46,12.49235023]
[1728482913367,1.76690388,141.49,141.46,4.00985042]
[1728482913671,13.4319,141.47,141.46,4.00985042]
[1728482913851,35.1992373,141.47,141.46,4.00985042]
[1728482915350,8.1306373,141.47,141.41,77.0715]
[1728482915664,7.0696,141.45,141.41,77.0715]
[1728482916164,6.3633,141.47,141.36,87.6851]
[1728482916462,0.25098,141.45,141.36,24.7591]
[1728482916631,7.0722,141.4,141.36,24.7591]
[1728482916840,7.0709,141.43,141.38,7.0729]
[1728482917152,8.83879052,141.43,141.38,7.0729]
[1728482918054,8.83879052,141.43,141.39,1.41429258]
[1728482918975,7.0711,141.42,141.37,7.0735]
[1728482919752,1.76786603,141.45,141.37,7.0735]
[1728482919753,1.76786603,141.45,141.4,7.0721]
[1728482919970,6.3633,141.47,141.42,17.6772]
[1728482920143,7.0697,141.45,141.4,7.072]
[1728482920350,7.0706,141.43,141.39,17.6809]
[1728482920531,7.0712,141.42,141.38,70.0]
[1728482920840,7.0707,141.43,141.39,1.41426554]
[1728482921036,6.3633,141.47,141.39,1.41426554]
[1728482921254,6.3633,141.47,141.38,70.0]
[1728482921255,20.0,141.46,141.38,87.80719]
[1728482921559,7.0705,141.44,141.39,7.0726]
[1728482921785,27.0691,141.46,141.4,19.09397151]
[1728482921959,7.0691,141.46,141.42,7.071]
[1728482922139,8.13101439,141.47,141.42,8.48498927]
[1728482922356,15.19961439,141.47,141.43,7.0705]
[1728482922568,15.9659,141.49,141.46,7.0687]
[1728482922770,13.531,141.51,141.47,1.4136102]
[1728482922771,1.76701275,141.5,141.47,1.4136102]
[1728482924161,7.0682,141.48,141.44,17.6748]
[1728482924747,7.0677,141.49,141.45,8.48312589]
[1728482925053,7.0677,141.49,141.45,7.0695]
[1728482925345,7.0677,141.49,141.45,8.48311333]
[1728482925544,7.0677,141.49,141.44,24.7448]
[1728482926155,7.0687,141.47,141.43,30.972874]
[1728482926688,7.0687,141.47,141.43,7.0705]
[1728482926872,7.0687,141.47,141.44,1.41376232]
[1728482927167,7.0687,141.47,141.43,7.0705]
[1728482927361,1.7672029,141.49,141.43,7.0705]
[1728482927362,8.8351029,141.49,141.45,1.41376346]
[1728482927545,7.0679,141.49,141.45,8.48326346]
[1728482927764,7.0679,141.49,141.45,7.0695]
[1728482928073,21.76707468,141.5,141.45,7.0695]
[1728482928250,27.0672,141.5,141.46,7.0691]
[1728482928448,27.0672,141.5,141.46,1.41354653]
[1728482928657,27.0672,141.5,141.45,24.743]
[1728482929588,20.0,141.5,141.45,17.6736]
[1728482929745,27.0671,141.5,141.46,7.0686]
[1728482929943,20.0,141.5,141.43,0.12549]
[1728482930268,7.0686,141.47,141.43,30.972574]
[1728482930765,7.0682,141.48,141.44,8.48370377]
[1728482930939,6.4644,141.51,141.45,7.0693]
[1728482931137,27.0672,141.5,141.46,8.48254822]
[1728482931961,1.76690914,141.49,141.44,17.6747]
[1728482932160,7.0692,141.46,141.43,23.902374]
[1728482932343,7.0687,141.47,141.43,30.972874]
[1728482932538,1.76690914,141.49,141.43,23.902374]
[1728482932763,7.068,141.49,141.44,77.0698]
[1728482933098,7.0683,141.48,141.44,77.0698]
[1728482933369,7.0683,141.48,141.44,7.0698]
[1728482934271,7.0683,141.48,141.45,1.41368138]
[1728482935082,6.4644,141.51,141.45,1.41368138]
[1728482935271,21.7671176,141.52,141.47,17.6711]
[1728482935553,7.0667,141.51,141.47,26.15315764]
[1728482936661,7.0672,141.5,141.46,30.845884]
[1728482936856,24.115,141.55,141.48,70.0]
[1728482936857,1.76681628,141.54,141.48,70.0]
[1728482937049,8.83186018,141.54,141.5,7.067]
[1728482937249,8.83186018,141.54,141.51,1.41318063]
[1728482937666,7.0654,141.54,141.51,1.41318063]
[1728482937964,8.83049383,141.56,141.52,7.0657]
[1728482938172,7.0646,141.55,141.51,8.47958063]
[1728482938371,1.76629718,141.54,141.48,70.0]
[1728482938582,7.0659,141.53,141.49,30.969874]
[1728482939074,1.7664093,141.56,141.49,23.902374]
[1728482939279,7.0654,141.54,141.5,7.0671]
[1728482939452,7.0666,141.51,141.47,7.0684]
[1728482939658,1.76666307,141.54,141.48,1.41333045]
[1728482939857,1.76666307,141.54,141.48,17.6702]
[1728482940057,7.0662,141.52,141.48,24.7379]
[1728482940263,21.76660037,141.54,141.46,70.0]
[1728482940465,7.0658,141.53,141.49,7.0675]